fUST/lending_fUST_20250717
["ID","MTS","AMOUNT","RATE_DAILY","PERIOD"]
[372742502,1752749456447,-1500.0,0.00020468,2]
[372742504,1752749456458,-3000.0,0.00020512,2]
[372742506,1752749456470,-649.95,0.00020557,2]
[372742508,1752749456480,-718.62,0.00020557,2]
[372742510,1752749456490,-460.0,0.00020557,2]
[372742512,1752749456499,-460.0,0.00020557,2]
[372742514,1752749456509,-460.0,0.00020557,2]
[372742516,1752749456519,-636.78,0.00020557,2]
[372742518,1752749456529,-1359.29,0.00020559,2]
[372742520,1752749456538,-151.0,0.00020561,2]
[372742521,1752749456548,-592.74146333,0.00020562,2]
[372742522,1752749456558,-1336.9,0.00020562,2]
[372742523,1752749456568,-2365.42,0.00020562,2]
[372742524,1752749456579,-460.0,0.00020562,2]
[372742525,1752749456589,-777.647444,0.00020562,2]
[372742526,1752749456599,-777.647444,0.00020562,2]
[372742527,1752749456609,-859.99,0.00020562,2]
[372742528,1752749456619,-1691.93,0.00020562,2]
[372742529,1752749456630,-4571.51,0.00020562,2]
[372742530,1752749456640,-500.0,0.00020632,2]
[372742531,1752749456653,-13088.24121899,0.00020659,3]
[372742532,1752749456662,-532.936075,0.00020659,3]
[372742533,1752749456672,-153.0,0.00020685,2]
[372742534,1752749456682,-1541.42,0.00020685,2]
[372742535,1752749456692,-3125.9,0.00020721,2]
[372742536,1752749456702,-671.88,0.00020721,2]
[372742537,1752749456711,-3141.42,0.00020721,2]
[372742538,1752749456721,-460.0,0.00020721,2]
[372742539,1752749456731,-2697.73,0.00020721,2]
[372742540,1752749456741,-460.0,0.00020721,2]
[372742541,1752749456751,-1049.54,0.00020721,2]
[372742542,1752749456761,-1349.2,0.00020721,2]
[372742543,1752749456770,-603.22,0.00020721,2]
[372742544,1752749456780,-460.0,0.00020721,2]
[372742545,1752749456790,-830.6,0.00020729,2]
[372742546,1752749456799,-628.32,0.00020729,2]
[372742547,1752749456809,-521.73,0.00020729,2]
[372742548,1752749456820,-984.02,0.00020729,2]
[372742549,1752749456830,-551.48,0.00020729,2]
[372742550,1752749456839,-490.85,0.00020729,2]
[372742551,1752749456848,-468.68,0.00020729,2]
[372742553,1752749456861,-460.0,0.00020729,2]
[372742554,1752749456871,-234.21922923,0.00020729,2]
[372742555,1752749456880,-719.87,0.00020729,2]
[372742556,1752749456889,-460.0,0.00020729,2]
[372742557,1752749456899,-726.87,0.00020729,2]
[372742559,1752749456909,-2228.36,0.00020731,2]
[372742561,1752749456919,-584.98,0.00020731,2]
[372742563,1752749456928,-460.0,0.00020731,2]
[372742565,1752749456937,-460.0,0.00020731,2]
[372742567,1752749456946,-4089.05,0.00020731,2]
[372742569,1752749456956,-460.0,0.00020731,2]
[372742571,1752749456965,-1256.82,0.00020731,2]
[372742573,1752749456976,-1451.74,0.00020731,2]
[372742575,1752749456985,-333.8,0.00020746,4]
[372742577,1752749456995,-649.95,0.00020831,2]
[372742579,1752749457005,-718.62,0.00020831,2]
[372742581,1752749457014,-460.0,0.00020831,2]
[372742583,1752749457024,-460.0,0.00020831,2]
[372742585,1752749457033,-460.0,0.00020831,2]
[372742587,1752749457043,-636.78,0.00020831,2]
[372742589,1752749457053,-1359.29,0.00020833,2]
[372742591,1752749457063,-1336.9,0.00020836,2]
[372742593,1752749457072,-2365.42,0.00020836,2]
[372742594,1752749457081,-460.0,0.00020836,2]
[372742596,1752749457091,-859.99,0.00020836,2]
[372742599,1752749457101,-1691.93,0.00020836,2]
[372742600,1752749457112,-4571.51,0.00020836,2]
[372742602,1752749457122,-2664.58856842,0.00020905,2]
[372742605,1752749457132,-2157.0,0.00020926,2]
[372742607,1752749457143,-13088.24121899,0.00020934,4]
[372742609,1752749457153,-233.447378,0.00020935,2]
[372742611,1752749457163,-233.447378,0.00020935,2]
[372742613,1752749457173,-560.0,0.00020936,2]
[372742614,1752749457183,-3057.42963324,0.00020959,2]
[372742617,1752749457194,-1541.42,0.00020959,2]
[372742619,1752749457203,-3125.9,0.00020995,2]
[372742621,1752749457213,-671.88,0.00020995,2]
[372742623,1752749457223,-3141.42,0.00020995,2]
[372742625,1752749457233,-460.0,0.00020995,2]
[372742627,1752749457242,-2697.73,0.00020995,2]
[372742629,1752749457252,-460.0,0.00020995,2]
[372742631,1752749457262,-1049.54,0.00020995,2]
[372742632,1752749457272,-1349.2,0.00020995,2]
[372742634,1752749457281,-603.22,0.00020995,2]
[372742636,1752749457291,-830.6,0.00021003,2]
[372742638,1752749457300,-628.32,0.00021003,2]
[372742640,1752749457309,-521.73,0.00021003,2]
[372742642,1752749457320,-984.02,0.00021003,2]
[372742644,1752749457329,-551.48,0.00021003,2]
[372742646,1752749457338,-468.68,0.00021003,2]
[372742648,1752749457348,-460.0,0.00021003,2]
[372742650,1752749457357,-719.87,0.00021003,2]
[372742652,1752749457367,-460.0,0.00021003,2]
[372742654,1752749457376,-726.87,0.00021003,2]
[372742656,1752749457387,-2228.36,0.00021005,2]
[372742658,1752749457397,-584.98,0.00021005,2]
[372742660,1752749457407,-460.0,0.00021005,2]
[372742662,1752749457417,-460.0,0.00021005,2]
[372742664,1752749457426,-4089.05,0.00021005,2]
[372742666,1752749457436,-460.0,0.00021005,2]
[372742668,1752749457446,-1256.82,0.00021005,2]
[372742670,1752749457456,-1451.74,0.00021005,2]
[372742672,1752749457466,-2000.0,0.00021016,2]
[372742674,1752749457475,-1607.1850976,0.00021016,2]
[372742676,1752749457484,-2000.0,0.00021016,2]
[372742678,1752749457494,-500.0,0.00021016,2]
[372742680,1752749457504,-2000.0,0.00021016,2]
[372742682,1752749457513,-2000.0,0.00021016,2]
[372742684,1752749457522,-215.0738,0.00021025,2]
[372742686,1752749457531,-532.936075,0.00021042,2]
[372742688,1752749457541,-2966.84311173,0.00021057,2]
[372742690,1752749457550,-3500.0,0.0002106,2]
[372742692,1752749457560,-610.68261259,0.00021104,2]
[372742693,1752749457573,-649.95,0.00021105,2]
[372742695,1752749457582,-718.62,0.00021105,2]
[372742697,1752749457592,-460.0,0.00021105,2]
[372742699,1752749457603,-460.0,0.00021105,2]
[372742701,1752749457613,-460.0,0.00021105,2]
[372742703,1752749457623,-636.78,0.00021105,2]
[372742705,1752749457633,-532.936075,0.00021107,4]
[372742707,1752749457642,-1359.29,0.00021107,2]
[372742709,1752749457654,-151.0,0.00021107,2]
[372742711,1752749457665,-151.0,0.00021107,2]
[372742713,1752749457675,-1336.9,0.0002111,2]
[372742715,1752749457684,-2365.42,0.0002111,2]
[372742717,1752749457695,-460.0,0.0002111,2]
[372742719,1752749457704,-859.99,0.0002111,2]
[372742722,1752749457714,-1691.93,0.0002111,2]
[372742724,1752749457724,-4571.51,0.0002111,2]
[372742726,1752749457735,-333.8,0.00021197,4]
[372742728,1752749457745,-13088.24121899,0.0002121,4]
[372742730,1752749457754,-500.0,0.00021212,2]
[372742732,1752749457763,-2351.0,0.00021232,2]
[372742734,1752749457772,-1541.42,0.00021233,2]
[372742736,1752749457782,-1339.522,0.00021236,2]
[372742738,1752749457791,-2157.0,0.00021244,2]
[372742739,1752749457800,-2157.0,0.00021263,2]
[372742741,1752749457810,-3125.9,0.00021269,2]
[372742744,1752749457821,-671.88,0.00021269,2]
[372742745,1752749457831,-3141.42,0.00021269,2]
[372742747,1752749457840,-460.0,0.00021269,2]
[372742749,1752749457849,-2697.73,0.00021269,2]
[372742751,1752749457858,-460.0,0.00021269,2]
[372742753,1752749457868,-1049.54,0.00021269,2]
[372742755,1752749457877,-1349.2,0.00021269,2]
[372742757,1752749457886,-603.22,0.00021269,2]
[372742759,1752749457895,-830.6,0.00021277,2]
[372742761,1752749457906,-628.32,0.00021277,2]
[372742763,1752749457915,-521.73,0.00021277,2]
[372742765,1752749457924,-984.02,0.00021277,2]
[372742767,1752749457933,-551.48,0.00021277,2]
[372742769,1752749457943,-468.68,0.00021277,2]
[372742771,1752749457952,-460.0,0.00021277,2]
[372742773,1752749457962,-719.87,0.00021277,2]
[372742775,1752749457973,-460.0,0.00021277,2]
[372742777,1752749457982,-726.87,0.00021277,2]
[372742779,1752749457991,-2228.36,0.00021279,2]
[372742781,1752749458001,-151.0,0.00021279,2]
[372742783,1752749458011,-584.98,0.00021279,2]
[372742785,1752749458020,-460.0,0.00021279,2]
[372742788,1752749458030,-460.0,0.00021279,2]
[372742790,1752749458040,-151.0,0.00021279,2]
[372742792,1752749458049,-4089.05,0.00021279,2]
[372742793,1752749458058,-151.0,0.00021279,2]
[372742795,1752749458071,-460.0,0.00021279,2]
[372742798,1752749458081,-1256.82,0.00021279,2]
[372742800,1752749458090,-1451.74,0.00021279,2]
[372742802,1752749458100,-3057.42963324,0.00021288,2]
[372742814,1752749458206,-2157.0,0.00021311,2]
[372742816,1752749458218,-151.0,0.00021332,2]
[372742818,1752749458227,-151.0,0.00021332,2]
[372742820,1752749458236,-169.508446,0.00021332,2]
[372742822,1752749458246,-169.508446,0.00021332,2]
[372742824,1752749458255,-649.95,0.00021379,2]
[372742826,1752749458264,-718.62,0.00021379,2]
[372742828,1752749458274,-460.0,0.00021379,2]
[372742830,1752749458283,-460.0,0.00021379,2]
[372742832,1752749458292,-460.0,0.00021379,2]
[372742834,1752749458303,-636.78,0.00021379,2]
[372742836,1752749458313,-1359.29,0.00021381,2]
[372742838,1752749458322,-5888.0,0.00021381,2]
[372742840,1752749458331,-151.0,0.00021383,2]
[372742842,1752749458340,-1336.9,0.00021384,2]
[372742844,1752749458350,-2365.42,0.00021384,2]
[372742846,1752749458359,-460.0,0.00021384,2]
[372742848,1752749458368,-859.99,0.00021384,2]
[372742850,1752749458378,-1691.93,0.00021384,2]
[372742852,1752749458388,-4571.51,0.00021384,2]
[372742854,1752749458397,-218.529304,0.00021386,2]
[372742856,1752749458406,-218.529304,0.00021386,2]
[372742858,1752749458415,-2157.0,0.00021423,2]
[372742860,1752749458425,-682.536,0.00021426,2]
[372742862,1752749458434,-2155.0,0.00021426,2]
[372742864,1752749458443,-968.0,0.00021426,2]
[372742866,1752749458453,-3057.42963324,0.00021473,2]
[372742868,1752749458462,-660.0,0.00021484,2]
[372742870,1752749458471,-294.087487,0.00021486,2]
[372742872,1752749458481,-294.087487,0.00021486,2]
[372742874,1752749458490,-160.579052,0.00021486,2]
[372742876,1752749458500,-160.579052,0.00021486,2]
[372742878,1752749458509,-151.0,0.00021486,2]
[372742880,1752749458518,-151.0,0.00021486,2]
[372742882,1752749458528,-151.0,0.00021486,2]
[372742884,1752749458538,-13088.24121899,0.00021486,5]
[372742886,1752749458547,-153.0,0.00021507,2]
[372742888,1752749458556,-153.0,0.00021507,2]
[372742890,1752749458566,-1541.42,0.00021507,2]
[372742892,1752749458576,-800.0,0.00021509,2]
[372742894,1752749458585,-2157.0,0.00021509,2]
[372742896,1752749458595,-5000.0,0.00021513,2]
[372742898,1752749458604,-151.0,0.00021513,2]
[372742900,1752749458613,-378.03175,0.00021513,2]
[372742902,1752749458623,-378.03175,0.00021513,2]
[372742904,1752749458632,-163.047601,0.00021513,2]
[372742906,1752749458641,-163.047601,0.00021513,2]
[372742908,1752749458653,-294.79733788,0.00021542,2]
[372742910,1752749458665,-3125.9,0.00021543,2]
[372742912,1752749458675,-671.88,0.00021543,2]
[372742914,1752749458685,-3141.42,0.00021543,2]
[372742916,1752749458694,-322.63924152,0.00021543,2]
[372742918,1752749458704,-2697.73,0.00021543,2]
[372742920,1752749458713,-1049.54,0.00021543,2]
[372742922,1752749458722,-1349.2,0.00021543,2]
[372742924,1752749458734,-603.22,0.00021543,2]
[372742926,1752749458743,-2157.0,0.00021547,2]
[372742928,1752749458753,-830.6,0.00021551,2]
[372742930,1752749458763,-628.32,0.00021551,2]
[372742932,1752749458772,-521.73,0.00021551,2]
[372742934,1752749458781,-984.02,0.00021551,2]
[372742936,1752749458791,-551.48,0.00021551,2]
[372742938,1752749458800,-777.647444,0.00021551,2]
[372742940,1752749458809,-777.647444,0.00021551,2]
[372742942,1752749458819,-468.68,0.00021551,2]
[372742944,1752749458829,-460.0,0.00021551,2]
[372742946,1752749458840,-719.87,0.00021551,2]
[372742948,1752749458849,-460.0,0.00021551,2]
[372742950,1752749458858,-726.87,0.00021551,2]
[372742952,1752749458868,-2228.36,0.00021553,2]
[372742954,1752749458877,-584.98,0.00021553,2]
[372742956,1752749458887,-460.0,0.00021553,2]
[372742958,1752749458897,-4089.05,0.00021553,2]
[372742960,1752749458906,-460.0,0.00021553,2]
[372742962,1752749458918,-1256.82,0.00021553,2]
[372742964,1752749458927,-1451.74,0.00021553,2]
[372742966,1752749458937,-151.0,0.00021555,2]
[372742968,1752749458946,-151.0,0.00021555,2]
[372742970,1752749458955,-151.0,0.00021555,2]
[372742972,1752749458965,-151.0,0.00021555,2]
[372742974,1752749458974,-2500.0,0.00021564,2]
[372742976,1752749458984,-2500.0,0.00021564,2]
[372742978,1752749458993,-988.74686382,0.00021564,2]
[372742980,1752749459003,-2500.0,0.00021564,2]
[372742982,1752749459012,-1500.0,0.00021608,2]
[372742984,1752749459022,-2157.0,0.00021647,2]
[372742986,1752749459031,-333.8,0.00021647,4]
[372742988,1752749459041,-2966.84311173,0.00021651,2]
[372742990,1752749459050,-649.95,0.00021653,2]
[372742992,1752749459059,-718.62,0.00021653,2]
[372742994,1752749459070,-460.0,0.00021653,2]
[372742996,1752749459079,-460.0,0.00021653,2]
[372742998,1752749459088,-152.97,0.00021653,2]
[372743000,1752749459098,-636.78,0.00021653,2]
[372743002,1752749459107,-1359.29,0.00021655,2]
[372743004,1752749459116,-151.0,0.00021657,2]
[372743006,1752749459125,-1336.9,0.00021658,2]
[372743008,1752749459135,-2365.42,0.00021658,2]
[372743010,1752749459144,-460.0,0.00021658,2]
[372743012,1752749459153,-859.99,0.00021658,2]
[372743014,1752749459162,-1691.93,0.00021658,2]
[372743016,1752749459172,-4571.51,0.00021658,2]
[372743018,1752749459181,-2157.0,0.00021714,2]
[372743020,1752749459191,-500.0,0.00021718,2]
[372743022,1752749459200,-500.0,0.00021718,2]
[372743024,1752749459210,-2157.0,0.00021742,2]
[372743026,1752749459219,-2157.0,0.00021753,2]
[372743028,1752749459228,-216.03051232,0.00021761,2]
[372743029,1752749459239,-13088.24121899,0.00021762,5]
[372743030,1752749459248,-1541.42,0.00021781,2]
[372743031,1752749459258,-2157.0,0.00021811,2]
[372743032,1752749459268,-3125.9,0.00021817,2]
[372743033,1752749459277,-671.88,0.00021817,2]
[372743034,1752749459286,-3141.42,0.00021817,2]
[372743035,1752749459296,-2697.73,0.00021817,2]
[372743036,1752749459305,-1049.54,0.00021817,2]
[372743038,1752749459318,-1349.2,0.00021817,2]
[372743040,1752749459328,-603.22,0.00021817,2]
[372743041,1752749459338,-830.6,0.00021825,2]
[372743044,1752749459347,-628.32,0.00021825,2]
[372743045,1752749459357,-521.73,0.00021825,2]
[372743048,1752749459367,-984.02,0.00021825,2]
[372743050,1752749459376,-551.48,0.00021825,2]
[372743052,1752749459386,-468.68,0.00021825,2]
[372743054,1752749459396,-460.0,0.00021825,2]
[372743056,1752749459406,-719.87,0.00021825,2]
[372743058,1752749459416,-460.0,0.00021825,2]
[372743060,1752749459425,-726.87,0.00021825,2]
[372743062,1752749459435,-2228.36,0.00021827,2]
[372743064,1752749459445,-584.98,0.00021827,2]
[372743066,1752749459454,-460.0,0.00021827,2]
[372743068,1752749459463,-4089.05,0.00021827,2]
[372743070,1752749459472,-460.0,0.00021827,2]
[372743072,1752749459482,-1256.82,0.00021827,2]
[372743074,1752749459492,-1451.74,0.00021827,2]
[372743076,1752749459501,-1567.182654,0.00021869,8]
[372743078,1752749459512,-3057.42963324,0.00021899,2]
[372743080,1752749459522,-2157.0,0.00021905,2]
[372743082,1752749459531,-532.936075,0.00021913,3]
[372743084,1752749459542,-153.0,0.00021918,2]
[372743086,1752749459551,-153.0,0.00021918,2]
[372743088,1752749459562,-153.0,0.00021918,2]
[372743090,1752749459572,-153.0,0.00021918,2]
[372743092,1752749459581,-153.0,0.00021918,2]
[372743094,1752749459591,-153.0,0.00021918,2]
[372743096,1752749459600,-153.0,0.00021918,2]
[372743098,1752749459610,-153.0,0.00021918,2]
[372743100,1752749459619,-153.0,0.00021918,2]
[372743102,1752749459629,-153.0,0.00021918,2]
[372743104,1752749459638,-153.0,0.00021918,2]
[372743106,1752749459648,-153.0,0.00021918,2]
[372743108,1752749459660,-153.0,0.00021918,2]
[372743110,1752749459669,-153.0,0.00021918,2]
[372743112,1752749459678,-153.0,0.00021918,2]
[372743114,1752749459688,-153.0,0.00021918,2]
[372743116,1752749459699,-153.0,0.00021918,2]
[372743118,1752749459710,-153.0,0.00021918,2]
[372743120,1752749459720,-153.0,0.00021918,2]
[372743122,1752749459730,-153.0,0.00021918,2]
[372743124,1752749459739,-153.0,0.00021918,2]
[372743126,1752749459749,-153.0,0.00021918,2]
[372743128,1752749459759,-153.0,0.00021918,2]
[372743130,1752749459768,-153.0,0.00021918,2]
[372743132,1752749459778,-153.0,0.00021918,2]
[372743134,1752749459788,-153.0,0.00021918,2]
[372743136,1752749459797,-153.0,0.00021918,2]
[372743138,1752749459807,-153.0,0.00021918,2]
[372743140,1752749459818,-153.0,0.00021918,2]
[372743142,1752749459827,-153.0,0.00021918,2]
[372743144,1752749459836,-153.0,0.00021918,2]
[372743146,1752749459846,-153.0,0.00021918,2]
[372743148,1752749459855,-153.0,0.00021918,2]
[372743150,1752749459864,-153.0,0.00021918,2]
[372743152,1752749459873,-153.0,0.00021918,2]
[372743154,1752749459883,-153.0,0.00021918,2]
[372743156,1752749459892,-153.0,0.00021918,2]
[372743158,1752749459901,-153.0,0.00021918,2]
[372743160,1752749459911,-153.0,0.00021918,2]
[372743162,1752749459920,-153.0,0.00021918,2]
[372743164,1752749459930,-153.0,0.00021918,2]
[372743166,1752749459939,-153.0,0.00021918,2]
[372743168,1752749459948,-153.0,0.00021918,2]
[372743170,1752749459957,-153.0,0.00021918,2]
[372743172,1752749459967,-150.0,0.00021918,2]
[372743174,1752749459976,-150.0,0.00021918,2]
[372743176,1752749459985,-150.0,0.00021918,2]
[372743178,1752749459994,-200.0,0.00021918,2]
[372743180,1752749460004,-150.0,0.00021918,2]
[372743182,1752749460014,-649.95,0.00021927,2]
[372743184,1752749460024,-718.62,0.00021927,2]
[372743186,1752749460033,-460.0,0.00021927,2]
[372743188,1752749460043,-460.0,0.00021927,2]
[372743190,1752749460055,-636.78,0.00021927,2]
[372743200,1752749460156,-1359.29,0.00021929,2]
[372743202,1752749460167,-1336.9,0.00021932,2]
[372743204,1752749460178,-2365.42,0.00021932,2]
[372743206,1752749460188,-460.0,0.00021932,2]
[372743208,1752749460198,-859.99,0.00021932,2]
[372743210,1752749460207,-1691.93,0.00021932,2]
[372743212,1752749460217,-4571.51,0.00021932,2]
[372743214,1752749460227,-151.0,0.00022,7]
[372743217,1752749460236,-151.0,0.00022,7]
[372743219,1752749460246,-218.529304,0.00022,7]
[372743221,1752749460255,-218.529304,0.00022,7]
[372743223,1752749460265,-169.508446,0.00022,7]
[372743225,1752749460276,-169.508446,0.00022,7]
[372743227,1752749460285,-7496.75,0.00022,7]
[372743229,1752749460294,-3923.46,0.00022,7]
[372743231,1752749460305,-66356.95,0.00022,2]
[372743233,1752749460316,-151.306194,0.00022,7]
[372743235,1752749460326,-233.447378,0.00022,7]
[372743237,1752749460336,-233.447378,0.00022,7]
[372743239,1752749460346,-476.16111942,0.00022,7]
[372743241,1752749460356,-151.0,0.00022,7]
[372743243,1752749460367,-151.0,0.00022,7]
[372743245,1752749460376,-151.0,0.00022,2]
[372743247,1752749460385,-151.0,0.00022,7]
[372743249,1752749460395,-151.0,0.00022,7]
[372743251,1752749460404,-12607.95677342,0.00022,7]
[372743253,1752749460414,-214.44804168,0.00022,7]
[372743255,1752749460424,-298.0,0.00022,2]
[372743257,1752749460434,-2157.0,0.00022019,2]
[372743259,1752749460443,-151.0,0.00022029,7]
[372743261,1752749460453,-760.0,0.00022032,2]
[372743263,1752749460463,-13088.24121899,0.00022038,6]
[372743265,1752749460473,-1541.42,0.00022055,2]
[372743267,1752749460482,-2200.0,0.00022055,2]
[372743269,1752749460492,-532.936075,0.0002207,4]
[372743271,1752749460502,-2157.0,0.00022084,2]
[372743273,1752749460512,-151.0,0.0002209,2]
[372743275,1752749460521,-151.0,0.0002209,2]
[372743277,1752749460530,-1462.0,0.0002209,2]
[372743279,1752749460540,-151.0,0.0002209,2]
[372743281,1752749460550,-151.0,0.0002209,2]
[372743283,1752749460560,-151.0,0.0002209,2]
[372743285,1752749460571,-1610.0,0.0002209,2]
[372743287,1752749460581,-151.0,0.0002209,2]
[372743289,1752749460592,-245.0,0.0002209,2]
[372743291,1752749460601,-153.59413777,0.0002209,2]
[372743293,1752749460611,-500.0,0.0002209,2]
[372743295,1752749460619,-151.0,0.0002209,2]
[372743297,1752749460629,-151.0,0.0002209,2]
[372743299,1752749460639,-151.0,0.0002209,2]
[372743301,1752749460650,-151.0,0.0002209,2]
[372743303,1752749460661,-151.0,0.0002209,2]
[372743305,1752749460670,-151.0,0.0002209,2]
[372743307,1752749460680,-151.0,0.0002209,2]
[372743309,1752749460690,-151.0,0.0002209,2]
[372743311,1752749460702,-500.0,0.0002209,2]
[372743314,1752749460716,-500.0,0.0002209,2]
[372743315,1752749460729,-3125.9,0.00022091,2]
[372743317,1752749460739,-671.88,0.00022091,2]
[372743320,1752749460748,-3141.42,0.00022091,2]
[372743322,1752749460757,-2697.73,0.00022091,2]
[372743324,1752749460767,-1049.54,0.00022091,2]
[372743326,1752749460777,-1349.2,0.00022091,2]
[372743328,1752749460786,-603.22,0.00022091,2]
[372743330,1752749460796,-333.8,0.00022098,5]
[372743332,1752749460805,-830.6,0.00022099,2]
[372743334,1752749460815,-628.32,0.00022099,2]
[372743336,1752749460824,-521.73,0.00022099,2]
[372743337,1752749460833,-984.02,0.00022099,2]
[372743340,1752749460842,-551.48,0.00022099,2]
[372743342,1752749460853,-468.68,0.00022099,2]
[372743344,1752749460865,-460.0,0.00022099,2]
[372743346,1752749460875,-719.87,0.00022099,2]
[372743348,1752749460885,-241.88,0.00022099,2]
[372743350,1752749460894,-726.87,0.00022099,2]
[372743352,1752749460903,-247.08948301,0.000221,2]
[372743353,1752749460913,-2228.36,0.00022101,2]
[372743356,1752749460923,-584.98,0.00022101,2]
[372743358,1752749460934,-460.0,0.00022101,2]
[372743360,1752749460944,-4089.05,0.00022101,2]
[372743362,1752749460954,-460.0,0.00022101,2]
[372743364,1752749460964,-1256.82,0.00022101,2]
[372743366,1752749460973,-1451.74,0.00022101,2]
[372743368,1752749460984,-3057.42963325,0.00022103,2]
[372743370,1752749460993,-1811.52945269,0.00022112,2]
[372743372,1752749461003,-3000.0,0.00022112,2]
[372743374,1752749461013,-3000.0,0.00022112,2]
[372743376,1752749461023,-2157.0,0.00022134,2]
[372743378,1752749461033,-151.0,0.00022136,7]
[372743380,1752749461042,-151.0,0.00022136,7]
[372743383,1752749461059,-169.508446,0.00022136,7]
[372743386,1752749461078,-169.508446,0.00022136,7]
[372743388,1752749461091,-170.460945,0.00022136,7]
[372743391,1752749461107,-777.647444,0.00022136,7]
[372743394,1752749461124,-777.647444,0.00022136,7]
[372743396,1752749461140,-793.54763997,0.00022144,2]
[372743399,1752749461158,-3174.19055987,0.00022144,2]
[372743402,1752749461174,-7134.78683094,0.00022144,2]
[372743404,1752749461188,-639.44450549,0.00022144,2]
[372743407,1752749461203,-2557.77802195,0.00022144,2]
[372743410,1752749461218,-5755.0005494,0.00022144,2]
[372743412,1752749461230,-4015.3536666,0.00022144,2]
[372743414,1752749461244,-2157.0,0.00022157,2]
[372743417,1752749461263,-298.0,0.00022192,7]
[372743419,1752749461282,-649.95,0.00022201,2]
[372743422,1752749461299,-718.62,0.00022201,2]
[372743425,1752749461316,-417.79,0.00022201,2]
[372743427,1752749461328,-460.0,0.00022201,2]
[372743429,1752749461341,-636.78,0.00022201,2]
[372743432,1752749461356,-1359.29,0.00022203,2]
[372743435,1752749461372,-151.0,0.00022206,7]
[372743437,1752749461384,-378.03175,0.00022206,7]
[372743440,1752749461398,-378.03175,0.00022206,7]
[372743442,1752749461411,-163.047601,0.00022206,7]
[372743444,1752749461423,-163.047601,0.00022206,7]
[372743446,1752749461436,-1336.9,0.00022206,2]
[372743449,1752749461449,-2365.42,0.00022206,2]
[372743451,1752749461462,-460.0,0.00022206,2]
[372743454,1752749461476,-859.99,0.00022206,2]
[372743456,1752749461489,-1691.93,0.00022206,2]
[372743458,1752749461501,-4571.51,0.00022206,2]
[372743461,1752749461515,-294.087487,0.00022212,7]
[372743463,1752749461528,-294.087487,0.00022212,7]
[372743465,1752749461540,-160.579052,0.00022212,7]
[372743468,1752749461552,-160.579052,0.00022212,7]
[372743470,1752749461567,-151.0,0.00022212,7]
[372743472,1752749461580,-151.0,0.00022212,7]
[372743475,1752749461592,-151.0,0.00022212,7]
[372743477,1752749461606,-2157.0,0.00022236,2]
[372743479,1752749461619,-2966.84311173,0.00022246,2]
[372743482,1752749461631,-10220.88097573,0.00022255,2]
[372743484,1752749461645,-7389.38261493,0.00022265,2]
[372743486,1752749461663,-205.659413,0.00022265,7]
[372743489,1752749461681,-205.659413,0.00022265,7]
[372743491,1752749461694,-739.865937,0.00022265,7]
[372743493,1752749461705,-739.865937,0.00022265,7]
[372743496,1752749461718,-151.0,0.00022265,7]
[372743498,1752749461731,-151.0,0.00022265,7]